[Event "Titled Tuesday Blitz July 25 Early 2023"]
[White "FREDERICKtheMATE"]
[Black "Kiseljova, Marya"]
[BlackFideId "4155009"]
[WhiteElo "2368"]
[BlackElo "2150"]
[Result "1/2-1/2"]
[Round "9"]
[TimeControl "180+2"]
[Date "2023.07.25"]
[WhiteClock "0:00:41"]
[BlackClock "0:00:06"]
[Board "153"]

1. Nf3 {[%clk 0:03:00]}  d5 {[%clk 0:03:00]} 2. g3 {[%clk 0:03:01]}  Bg4 {[%clk 0:02:59]} 3. Bg2 {[%clk 0:03:01]}  Nf6 {[%clk 0:02:59]} 4. O-O {[%clk 0:03:01]}  Nbd7 {[%clk 0:02:59]} 5. d4 {[%clk 0:03:01]}  Nb6 {[%clk 0:02:55]} 6. b3 {[%clk 0:03:00]}  e6 {[%clk 0:02:53]} 7. Bb2 {[%clk 0:03:01]}  Be7 {[%clk 0:02:53]} 8. Nbd2 {[%clk 0:03:01]}  O-O {[%clk 0:02:52]} 9. c4 {[%clk 0:03:01]}  c5 {[%clk 0:02:48]} 10. dxc5 {[%clk 0:02:57]}  Bxc5 {[%clk 0:02:45]} 11. Rc1 {[%clk 0:02:56]}  Rc8 {[%clk 0:02:38]} 12. Ne5 {[%clk 0:02:53]}  Bh5 {[%clk 0:02:30]} 13. Ndf3 {[%clk 0:02:44]}  dxc4 {[%clk 0:02:09]} 14. Nxc4 {[%clk 0:02:41]}  Nxc4 {[%clk 0:02:01]} 15. Rxc4 {[%clk 0:02:42]}  Bb6 {[%clk 0:01:50]} 16. Qc1 {[%clk 0:02:34]}  Rxc4 {[%clk 0:01:48]} 17. Qxc4 {[%clk 0:02:33]}  Qc8 {[%clk 0:01:39]} 18. Rc1 {[%clk 0:02:28]}  Qxc4 {[%clk 0:01:34]} 19. Rxc4 {[%clk 0:02:25]}  Rd8 {[%clk 0:01:31]} 20. Bd4 {[%clk 0:01:58]}  Bxf3 {[%clk 0:00:24]} 21. Bxb6 {[%clk 0:01:56]}  Rd1+ {[%clk 0:00:24]} 22. Bf1 {[%clk 0:01:56]}  Bc6 {[%clk 0:00:24]} 23. Bxa7 {[%clk 0:01:49]}  h6 {[%clk 0:00:22]} 24. f3 {[%clk 0:01:43]}  Bb5 {[%clk 0:00:19]} 25. Rd4 {[%clk 0:01:42]}  Ra1 {[%clk 0:00:17]} 26. Rd2 {[%clk 0:01:40]}  Nd5 {[%clk 0:00:16]} 27. Bd4 {[%clk 0:01:38]}  Rc1 {[%clk 0:00:14]} 28. Kf2 {[%clk 0:01:36]}  f6 {[%clk 0:00:14]} 29. Bb2 {[%clk 0:01:27]}  Rb1 {[%clk 0:00:13]} 30. Bh3 {[%clk 0:01:25]}  Kf7 {[%clk 0:00:12]} 31. e4 {[%clk 0:01:24]}  Nb4 {[%clk 0:00:10]} 32. a3 {[%clk 0:01:23]}  Nc6 {[%clk 0:00:09]} 33. a4 {[%clk 0:01:13]}  Ba6 {[%clk 0:00:09]} 34. f4 {[%clk 0:01:05]}  Nb4 {[%clk 0:00:09]} 35. Kf3 {[%clk 0:01:01]}  Nd3 {[%clk 0:00:09]} 36. Bd4 {[%clk 0:00:59]}  e5 {[%clk 0:00:08]} 37. fxe5 {[%clk 0:00:54]}  fxe5 {[%clk 0:00:09]} 38. Be3 {[%clk 0:00:53]}  Rxb3 {[%clk 0:00:10]} 39. Bf1 {[%clk 0:00:47]}  Ne1+ {[%clk 0:00:09]} 40. Kf2 {[%clk 0:00:46]}  Bxf1 {[%clk 0:00:09]} 41. Kxe1 {[%clk 0:00:46]}  Rxe3+ {[%clk 0:00:09]} 42. Kxf1 {[%clk 0:00:47]}  Rxe4 {[%clk 0:00:09]} 43. Rd7+ {[%clk 0:00:47]}  Kf6 {[%clk 0:00:09]} 44. Rxb7 {[%clk 0:00:47]}  Rxa4 {[%clk 0:00:10]} 45. Rb2 {[%clk 0:00:45]}  Ra3 {[%clk 0:00:09]} 46. Kf2 {[%clk 0:00:45]}  Kf5 {[%clk 0:00:09]} 47. h3 {[%clk 0:00:42]}  g5 {[%clk 0:00:09]} 48. Rb4 {[%clk 0:00:41]}  h5 {[%clk 0:00:08]} 49. g4+ {[%clk 0:00:40]}  hxg4 {[%clk 0:00:07]} 50. hxg4+ {[%clk 0:00:41]}  Ke6 {[%clk 0:00:08]} 51. Rb6+ {[%clk 0:00:40]}  Kd5 {[%clk 0:00:08]} 52. Rg6 {[%clk 0:00:40]}  Ke4 {[%clk 0:00:07]} 53. Rxg5 {[%clk 0:00:40]}  Kf4 {[%clk 0:00:06]} 54. Rf5+ {[%clk 0:00:39]}  Kxg4 {[%clk 0:00:06]} 55. Rxe5 {[%clk 0:00:39]}  Ra2+ {[%clk 0:00:05]} 56. Ke3 {[%clk 0:00:39]}  Ra3+ {[%clk 0:00:05]} 57. Kd4 {[%clk 0:00:39]}  Ra4+ {[%clk 0:00:06]} 58. Kc3 {[%clk 0:00:40]}  Ra3+ {[%clk 0:00:06]} 59. Kb4 {[%clk 0:00:40]}  Rf3 {[%clk 0:00:06]} 60. Re4+ {[%clk 0:00:39]}  Rf4 {[%clk 0:00:06]} 61. Rc4 {[%clk 0:00:40]}  Rxc4+ {[%clk 0:00:06]} 62. Kxc4 {[%clk 0:00:41]} 1/2-1/2


[Site "https://www.chess.com"]

[Event "Titled Tuesday Blitz July 25 Early 2023"]
[White "Sariego Figueredo, Wilfredo"]
[Black "Wernberg, Hugo"]
[WhiteFideId "3500080"]
[BlackFideId "1737511"]
[WhiteElo "2214"]
[BlackElo "2342"]
[Result "1/2-1/2"]
[Round "9"]
[TimeControl "180+2"]
[Date "2023.07.25"]
[WhiteClock "0:01:15"]
[BlackClock "0:00:06"]
[Board "154"]

1. d4 {[%clk 0:03:00]}  d5 {[%clk 0:02:59]} 2. Bf4 {[%clk 0:03:01]}  Nf6 {[%clk 0:02:58]} 3. e3 {[%clk 0:03:01]}  c5 {[%clk 0:02:58]} 4. c3 {[%clk 0:03:01]}  e6 {[%clk 0:02:59]} 5. Bd3 {[%clk 0:03:01]}  Bd6 {[%clk 0:02:59]} 6. Bg3 {[%clk 0:03:00]}  Qc7 {[%clk 0:02:58]} 7. Nf3 {[%clk 0:03:01]}  Nbd7 {[%clk 0:02:59]} 8. Nbd2 {[%clk 0:02:57]}  O-O {[%clk 0:02:58]} 9. Bxd6 {[%clk 0:02:55]}  Qxd6 {[%clk 0:02:58]} 10. O-O {[%clk 0:02:56]}  e5 {[%clk 0:02:58]} 11. dxe5 {[%clk 0:02:55]}  Nxe5 {[%clk 0:02:59]} 12. Nxe5 {[%clk 0:02:56]}  Qxe5 {[%clk 0:03:00]} 13. Nf3 {[%clk 0:02:52]}  Qe7 {[%clk 0:02:59]} 14. Qc2 {[%clk 0:02:52]}  b6 {[%clk 0:02:58]} 15. Rfe1 {[%clk 0:02:51]}  Bb7 {[%clk 0:02:58]} 16. Rad1 {[%clk 0:02:46]}  Rfe8 {[%clk 0:02:52]} 17. b3 {[%clk 0:02:36]}  Rad8 {[%clk 0:02:51]} 18. c4 {[%clk 0:02:32]}  dxc4 {[%clk 0:02:50]} 19. Bxc4 {[%clk 0:02:31]}  Bxf3 {[%clk 0:02:48]} 20. gxf3 {[%clk 0:02:32]}  Rxd1 {[%clk 0:02:45]} 21. Rxd1 {[%clk 0:02:33]}  Rd8 {[%clk 0:02:46]} 22. Rxd8+ {[%clk 0:02:27]}  Qxd8 {[%clk 0:02:47]} 23. Qd3 {[%clk 0:02:26]}  Qxd3 {[%clk 0:02:46]} 24. Bxd3 {[%clk 0:02:27]}  Kf8 {[%clk 0:02:37]} 25. a4 {[%clk 0:02:22]}  Ke7 {[%clk 0:02:33]} 26. Kg2 {[%clk 0:02:20]}  h6 {[%clk 0:02:10]} 27. Kg3 {[%clk 0:02:14]}  Kd6 {[%clk 0:02:08]} 28. Bc4 {[%clk 0:02:10]}  Ke7 {[%clk 0:01:56]} 29. Kf4 {[%clk 0:02:03]}  Ne8 {[%clk 0:01:50]} 30. Ke5 {[%clk 0:02:00]}  Nc7 {[%clk 0:01:49]} 31. h4 {[%clk 0:01:53]}  g5 {[%clk 0:01:34]} 32. hxg5 {[%clk 0:01:52]}  hxg5 {[%clk 0:01:35]} 33. Kf5 {[%clk 0:01:52]}  f6 {[%clk 0:01:34]} 34. f4 {[%clk 0:01:52]}  gxf4 {[%clk 0:01:32]} 35. Kxf4 {[%clk 0:01:52]}  a6 {[%clk 0:01:19]} 36. e4 {[%clk 0:01:44]}  b5 {[%clk 0:01:15]} 37. axb5 {[%clk 0:01:45]}  axb5 {[%clk 0:01:16]} 38. Be2 {[%clk 0:01:45]}  b4 {[%clk 0:01:03]} 39. Bc4 {[%clk 0:01:43]}  Na8 {[%clk 0:00:42]} 40. Kf5 {[%clk 0:01:39]}  Nb6 {[%clk 0:00:38]} 41. Be6 {[%clk 0:01:37]}  c4 {[%clk 0:00:21]} 42. bxc4 {[%clk 0:01:22]}  b3 {[%clk 0:00:19]} 43. c5 {[%clk 0:01:22]}  b2 {[%clk 0:00:18]} 44. Ba2 {[%clk 0:01:23]}  Na4 {[%clk 0:00:18]} 45. Bb1 {[%clk 0:01:20]}  Nxc5 {[%clk 0:00:05]} 46. e5 {[%clk 0:01:18]}  fxe5 {[%clk 0:00:04]} 47. Kxe5 {[%clk 0:01:18]}  Nb3 {[%clk 0:00:04]} 48. Ke4 {[%clk 0:01:12]}  Nd2+ {[%clk 0:00:02]} 49. Kd3 {[%clk 0:01:12]}  Nxb1 {[%clk 0:00:02]} 50. Kc2 {[%clk 0:01:13]}  Na3+ {[%clk 0:00:03]} 51. Kxb2 {[%clk 0:01:14]}  Nb5 {[%clk 0:00:03]} 52. f4 {[%clk 0:01:14]}  Nc7 {[%clk 0:00:04]} 53. f5 {[%clk 0:01:14]}  Ne6 {[%clk 0:00:05]} 54. f6+ {[%clk 0:01:15]}  Kxf6 {[%clk 0:00:06]} 1/2-1/2


[Site "https://www.chess.com"]

[Event "Titled Tuesday Blitz July 25 Early 2023"]
[White "Voege, Tobias"]
[Black "Graham, Nathaniel"]
[WhiteFideId "1270513"]
[BlackFideId "2007983"]
[WhiteElo "2604"]
[BlackElo "1998"]
[Result "1-0"]
[Round "9"]
[TimeControl "180+2"]
[Date "2023.07.25"]
[WhiteClock "0:00:47"]
[BlackClock "0:00:00"]
[Board "158"]

1. e4 {[%clk 0:03:00]}  c5 {[%clk 0:02:59]} 2. Nf3 {[%clk 0:03:00]}  e6 {[%clk 0:02:59]} 3. d4 {[%clk 0:03:00]}  cxd4 {[%clk 0:03:00]} 4. Nxd4 {[%clk 0:03:01]}  a6 {[%clk 0:02:59]} 5. c4 {[%clk 0:02:59]}  Qc7 {[%clk 0:02:57]} 6. Nc3 {[%clk 0:02:58]}  Nf6 {[%clk 0:02:56]} 7. Be3 {[%clk 0:02:56]}  Bb4 {[%clk 0:02:51]} 8. f3 {[%clk 0:02:54]}  d5 {[%clk 0:02:44]} 9. cxd5 {[%clk 0:02:45]}  exd5 {[%clk 0:02:44]} 10. Qa4+ {[%clk 0:02:44]}  Nc6 {[%clk 0:02:43]} 11. Nxc6 {[%clk 0:02:28]}  Bxc3+ {[%clk 0:02:40]} 12. bxc3 {[%clk 0:02:29]}  Qxc6 {[%clk 0:02:36]} 13. Qxc6+ {[%clk 0:02:25]}  bxc6 {[%clk 0:02:37]} 14. e5 {[%clk 0:02:18]}  Nd7 {[%clk 0:02:36]} 15. f4 {[%clk 0:02:17]}  Rb8 {[%clk 0:02:24]} 16. Bd3 {[%clk 0:02:16]}  O-O {[%clk 0:02:02]} 17. O-O {[%clk 0:02:11]}  Re8 {[%clk 0:01:40]} 18. Bf2 {[%clk 0:01:44]}  Nf8 {[%clk 0:01:17]} 19. Rab1 {[%clk 0:01:37]}  Bd7 {[%clk 0:00:55]} 20. Bxa6 {[%clk 0:01:18]}  Bf5 {[%clk 0:00:31]} 21. Rb3 {[%clk 0:01:01]}  Ra8 {[%clk 0:00:15]} 22. Bb7 {[%clk 0:00:53]}  Rxa2 {[%clk 0:00:13]} 23. Bxc6 {[%clk 0:00:52]}  Rd8 {[%clk 0:00:12]} 24. Bb6 {[%clk 0:00:47]}  Rc8 {[%clk 0:00:00]} 25. Bxd5 {[%clk 0:00:47]} 1-0


[Site "https://www.chess.com"]

[Event "Titled Tuesday Blitz July 25 Early 2023"]
[White "Castella Garcia, Fausto"]
[Black "Kuchava, Ana"]
[WhiteFideId "3501922"]
[BlackFideId "13605348"]
[WhiteElo "2442"]
[BlackElo "2215"]
[Result "1-0"]
[Round "9"]
[TimeControl "180+2"]
[Date "2023.07.25"]
[WhiteClock "0:01:06"]
[BlackClock "0:00:00"]
[Board "160"]

1. e4 {[%clk 0:03:00]}  c5 {[%clk 0:02:59]} 2. Nf3 {[%clk 0:02:59]}  d6 {[%clk 0:02:57]} 3. d4 {[%clk 0:02:59]}  cxd4 {[%clk 0:02:57]} 4. Nxd4 {[%clk 0:03:00]}  Nf6 {[%clk 0:02:57]} 5. Nc3 {[%clk 0:03:01]}  Nc6 {[%clk 0:02:57]} 6. Bg5 {[%clk 0:03:01]}  e6 {[%clk 0:02:55]} 7. Qd2 {[%clk 0:03:01]}  Qb6 {[%clk 0:02:54]} 8. Ndb5 {[%clk 0:02:53]}  a6 {[%clk 0:01:53]} 9. Be3 {[%clk 0:02:49]}  Qd8 {[%clk 0:01:49]} 10. Nd4 {[%clk 0:02:45]}  Be7 {[%clk 0:01:48]} 11. O-O-O {[%clk 0:02:40]}  Bd7 {[%clk 0:01:38]} 12. Be2 {[%clk 0:02:39]}  b5 {[%clk 0:01:33]} 13. a3 {[%clk 0:02:28]}  O-O {[%clk 0:01:21]} 14. g4 {[%clk 0:02:25]}  Nxd4 {[%clk 0:01:09]} 15. Qxd4 {[%clk 0:02:06]}  Bc6 {[%clk 0:01:06]} 16. g5 {[%clk 0:02:01]}  Nd7 {[%clk 0:00:58]} 17. h4 {[%clk 0:01:57]}  Rb8 {[%clk 0:00:35]} 18. f4 {[%clk 0:01:47]}  Qa5 {[%clk 0:00:26]} 19. g6 {[%clk 0:01:46]}  fxg6 {[%clk 0:00:24]} 20. h5 {[%clk 0:01:46]}  g5 {[%clk 0:00:16]} 21. Bg4 {[%clk 0:01:33]}  Nc5 {[%clk 0:00:11]} 22. h6 {[%clk 0:01:28]}  Bf6 {[%clk 0:00:03]} 23. e5 {[%clk 0:01:25]}  Na4 {[%clk 0:00:00]} 24. exf6 {[%clk 0:01:06]} 1-0


[Site "https://www.chess.com"]

[Event "Titled Tuesday Blitz July 25 Early 2023"]
[White "Viskelis, Darius"]
[Black "Sanudula, K M Dahamdi"]
[WhiteFideId "12800830"]
[BlackFideId "9932470"]
[WhiteElo "2333"]
[BlackElo "2155"]
[Result "1-0"]
[Round "9"]
[TimeControl "180+2"]
[Date "2023.07.25"]
[WhiteClock "0:01:53"]
[BlackClock "0:00:08"]
[Board "163"]

1. e4 {[%clk 0:02:51]}  d5 {[%clk 0:00:43]} 2. exd5 {[%clk 0:02:50]}  Qxd5 {[%clk 0:00:44]} 3. Nc3 {[%clk 0:02:50]}  Qa5 {[%clk 0:00:44]} 4. b4 {[%clk 0:02:50]}  Qxb4 {[%clk 0:00:43]} 5. Rb1 {[%clk 0:02:50]}  Qd6 {[%clk 0:00:43]} 6. Nf3 {[%clk 0:02:50]}  c6 {[%clk 0:00:43]} 7. Bb2 {[%clk 0:02:46]}  Nf6 {[%clk 0:00:43]} 8. Bc4 {[%clk 0:02:46]}  Qc7 {[%clk 0:00:42]} 9. a4 {[%clk 0:02:45]}  Bg4 {[%clk 0:00:42]} 10. h3 {[%clk 0:02:44]}  Bxf3 {[%clk 0:00:42]} 11. Qxf3 {[%clk 0:02:43]}  e6 {[%clk 0:00:43]} 12. O-O {[%clk 0:02:43]}  Bd6 {[%clk 0:00:43]} 13. Ne4 {[%clk 0:02:41]}  Nxe4 {[%clk 0:00:42]} 14. Qxe4 {[%clk 0:02:39]}  O-O {[%clk 0:00:37]} 15. Bd3 {[%clk 0:02:38]}  g6 {[%clk 0:00:35]} 16. Rfe1 {[%clk 0:02:38]}  Nd7 {[%clk 0:00:33]} 17. a5 {[%clk 0:02:35]}  a6 {[%clk 0:00:28]} 18. h4 {[%clk 0:02:34]}  Rfe8 {[%clk 0:00:27]} 19. h5 {[%clk 0:02:34]}  f5 {[%clk 0:00:27]} 20. Qh4 {[%clk 0:02:25]}  Be7 {[%clk 0:00:26]} 21. Qh3 {[%clk 0:02:23]}  Bf6 {[%clk 0:00:26]} 22. hxg6 {[%clk 0:02:13]}  hxg6 {[%clk 0:00:26]} 23. Qh6 {[%clk 0:02:14]}  Bxb2 {[%clk 0:00:21]} 24. Rxb2 {[%clk 0:02:09]}  Nf8 {[%clk 0:00:21]} 25. Bc4 {[%clk 0:02:05]}  Qg7 {[%clk 0:00:19]} 26. Qxg7+ {[%clk 0:02:04]}  Kxg7 {[%clk 0:00:20]} 27. Rxb7+ {[%clk 0:02:04]}  Kf6 {[%clk 0:00:19]} 28. Rb6 {[%clk 0:02:02]}  Rec8 {[%clk 0:00:18]} 29. f4 {[%clk 0:01:57]}  Rc7 {[%clk 0:00:16]} 30. Kf2 {[%clk 0:01:56]}  Re7 {[%clk 0:00:14]} 31. Rxc6 {[%clk 0:01:55]}  Nd7 {[%clk 0:00:14]} 32. Rexe6+ {[%clk 0:01:53]}  Rxe6 {[%clk 0:00:10]} 33. Rxe6+ {[%clk 0:01:54]}  Kf7 {[%clk 0:00:08]} 34. Rxa6+ {[%clk 0:01:53]} 1-0


[Site "https://www.chess.com"]

[Event "Titled Tuesday Blitz July 25 Early 2023"]
[White "djjohnnywoo"]
[Black "Cooper, Aaron"]
[BlackFideId "2634945"]
[WhiteElo "2141"]
[BlackElo "2290"]
[Result "0-1"]
[Round "9"]
[TimeControl "180+2"]
[Date "2023.07.25"]
[WhiteClock "0:00:33"]
[BlackClock "0:00:53"]
[Board "165"]

1. g3 {[%clk 0:03:00]}  Nf6 {[%clk 0:02:58]} 2. Bg2 {[%clk 0:03:00]}  d5 {[%clk 0:02:57]} 3. d3 {[%clk 0:03:00]}  g6 {[%clk 0:02:56]} 4. Nd2 {[%clk 0:03:00]}  Bg7 {[%clk 0:02:56]} 5. h3 {[%clk 0:03:00]}  O-O {[%clk 0:02:55]} 6. e4 {[%clk 0:03:00]}  dxe4 {[%clk 0:02:52]} 7. dxe4 {[%clk 0:02:59]}  e5 {[%clk 0:02:44]} 8. Qe2 {[%clk 0:02:58]}  c6 {[%clk 0:02:40]} 9. Nc4 {[%clk 0:02:49]}  Qc7 {[%clk 0:02:35]} 10. Be3 {[%clk 0:02:43]}  b6 {[%clk 0:02:22]} 11. Nf3 {[%clk 0:02:20]}  Nbd7 {[%clk 0:02:10]} 12. O-O-O {[%clk 0:02:18]}  Nxe4 {[%clk 0:01:46]} 13. Nfd2 {[%clk 0:01:34]}  Nxd2 {[%clk 0:01:38]} 14. Qxd2 {[%clk 0:01:34]}  Nf6 {[%clk 0:01:28]} 15. Bh6 {[%clk 0:01:30]}  Be6 {[%clk 0:01:23]} 16. Bxg7 {[%clk 0:01:29]}  Kxg7 {[%clk 0:01:24]} 17. Qc3 {[%clk 0:01:23]}  Bxc4 {[%clk 0:01:20]} 18. Qxc4 {[%clk 0:01:21]}  Rac8 {[%clk 0:01:19]} 19. Rhe1 {[%clk 0:01:19]}  Rfe8 {[%clk 0:01:18]} 20. g4 {[%clk 0:01:16]}  h6 {[%clk 0:01:15]} 21. h4 {[%clk 0:01:15]}  e4 {[%clk 0:01:02]} 22. Bxe4 {[%clk 0:00:55]}  Qf4+ {[%clk 0:01:02]} 23. Kb1 {[%clk 0:00:42]}  Rxe4 {[%clk 0:01:01]} 24. Qa6 {[%clk 0:00:38]}  Rce8 {[%clk 0:00:55]} 25. Qxa7 {[%clk 0:00:33]}  Rxe1 {[%clk 0:00:53]} 0-1


[Site "https://www.chess.com"]

[Event "Titled Tuesday Blitz July 25 Early 2023"]
[White "Hrescak, Ivana"]
[Black "Schut, Han"]
[WhiteFideId "14613441"]
[BlackFideId "1005561"]
[WhiteElo "2133"]
[BlackElo "2284"]
[Result "1/2-1/2"]
[Round "9"]
[TimeControl "180+2"]
[Date "2023.07.25"]
[WhiteClock "0:00:03"]
[BlackClock "0:00:07"]
[Board "166"]

1. e4 {[%clk 0:03:00]}  c5 {[%clk 0:02:51]} 2. Nf3 {[%clk 0:03:01]}  d6 {[%clk 0:02:50]} 3. Bb5+ {[%clk 0:03:00]}  Bd7 {[%clk 0:02:50]} 4. Bxd7+ {[%clk 0:03:00]}  Qxd7 {[%clk 0:02:51]} 5. c4 {[%clk 0:02:59]}  Nf6 {[%clk 0:02:50]} 6. Nc3 {[%clk 0:03:00]}  g6 {[%clk 0:02:50]} 7. d4 {[%clk 0:02:58]}  cxd4 {[%clk 0:02:50]} 8. Nxd4 {[%clk 0:02:59]}  Bg7 {[%clk 0:02:51]} 9. b3 {[%clk 0:02:57]}  O-O {[%clk 0:02:50]} 10. Bb2 {[%clk 0:02:57]}  Rc8 {[%clk 0:02:39]} 11. O-O {[%clk 0:02:55]}  Nc6 {[%clk 0:02:37]} 12. Nxc6 {[%clk 0:02:50]}  Qxc6 {[%clk 0:02:27]} 13. Nd5 {[%clk 0:02:45]}  Nxd5 {[%clk 0:02:21]} 14. exd5 {[%clk 0:02:44]}  Qd7 {[%clk 0:02:18]} 15. Bxg7 {[%clk 0:02:43]}  Kxg7 {[%clk 0:02:19]} 16. Qd4+ {[%clk 0:02:43]}  Kg8 {[%clk 0:02:19]} 17. Rfe1 {[%clk 0:02:34]}  Rc7 {[%clk 0:02:19]} 18. Re4 {[%clk 0:02:31]}  b5 {[%clk 0:02:18]} 19. Rae1 {[%clk 0:02:27]}  bxc4 {[%clk 0:02:17]} 20. bxc4 {[%clk 0:02:27]}  Re8 {[%clk 0:02:12]} 21. h4 {[%clk 0:02:24]}  h5 {[%clk 0:02:07]} 22. Qe3 {[%clk 0:02:19]}  Qa4 {[%clk 0:01:53]} 23. Qb3 {[%clk 0:02:01]}  Qa6 {[%clk 0:01:44]} 24. a3 {[%clk 0:01:38]}  Rb7 {[%clk 0:01:27]} 25. Qg3 {[%clk 0:01:29]}  Rc7 {[%clk 0:01:22]} 26. c5 {[%clk 0:01:13]}  Rxc5 {[%clk 0:01:06]} 27. Rxe7 {[%clk 0:01:13]}  Rxe7 {[%clk 0:00:58]} 28. Rxe7 {[%clk 0:01:12]}  Rc1+ {[%clk 0:00:57]} 29. Kh2 {[%clk 0:01:12]}  Qf1 {[%clk 0:00:58]} 30. Re8+ {[%clk 0:00:40]}  Kg7 {[%clk 0:00:40]} 31. Qe3 {[%clk 0:00:32]}  Qh1+ {[%clk 0:00:27]} 32. Kg3 {[%clk 0:00:32]}  Qd1 {[%clk 0:00:28]} 33. Qe4 {[%clk 0:00:16]}  Rc3+ {[%clk 0:00:18]} 34. Kh2 {[%clk 0:00:16]}  Rd3 {[%clk 0:00:15]} 35. Re7 {[%clk 0:00:14]}  Rd4 {[%clk 0:00:13]} 36. Qf3 {[%clk 0:00:11]}  Rxh4+ {[%clk 0:00:12]} 37. Kg3 {[%clk 0:00:11]}  Rg4+ {[%clk 0:00:13]} 38. Kh2 {[%clk 0:00:10]}  Rh4+ {[%clk 0:00:12]} 39. Kg3 {[%clk 0:00:10]}  Qxf3+ {[%clk 0:00:13]} 40. Kxf3 {[%clk 0:00:10]}  Rd4 {[%clk 0:00:13]} 41. Rxa7 {[%clk 0:00:10]}  Rxd5 {[%clk 0:00:14]} 42. a4 {[%clk 0:00:10]}  Kf6 {[%clk 0:00:12]} 43. Ke4 {[%clk 0:00:10]}  Rc5 {[%clk 0:00:12]} 44. a5 {[%clk 0:00:10]}  Ke6 {[%clk 0:00:11]} 45. a6 {[%clk 0:00:10]}  Ra5 {[%clk 0:00:11]} 46. Ra8 {[%clk 0:00:09]}  Ra4+ {[%clk 0:00:11]} 47. Ke3 {[%clk 0:00:09]}  d5 {[%clk 0:00:12]} 48. a7 {[%clk 0:00:09]}  Kf6 {[%clk 0:00:12]} 49. Kd3 {[%clk 0:00:09]}  g5 {[%clk 0:00:11]} 50. Ke3 {[%clk 0:00:08]}  h4 {[%clk 0:00:11]} 51. Kf3 {[%clk 0:00:08]}  Kg7 {[%clk 0:00:10]} 52. Ke3 {[%clk 0:00:06]}  f5 {[%clk 0:00:09]} 53. Kf3 {[%clk 0:00:06]}  Ra3+ {[%clk 0:00:09]} 54. Ke2 {[%clk 0:00:06]}  g4 {[%clk 0:00:10]} 55. Kd2 {[%clk 0:00:06]}  h3 {[%clk 0:00:09]} 56. gxh3 {[%clk 0:00:06]}  gxh3 {[%clk 0:00:10]} 57. Rb8 {[%clk 0:00:03]}  Rxa7 {[%clk 0:00:10]} 58. Rb3 {[%clk 0:00:04]}  Kf6 {[%clk 0:00:09]} 59. Rxh3 {[%clk 0:00:04]}  Ra2+ {[%clk 0:00:10]} 60. Ke3 {[%clk 0:00:03]}  Ke5 {[%clk 0:00:11]} 61. Rh8 {[%clk 0:00:04]}  Ra3+ {[%clk 0:00:11]} 62. Ke2 {[%clk 0:00:04]}  Kf4 {[%clk 0:00:11]} 63. Rd8 {[%clk 0:00:03]}  Ke4 {[%clk 0:00:10]} 64. Re8+ {[%clk 0:00:03]}  Kd4 {[%clk 0:00:11]} 65. Rf8 {[%clk 0:00:04]}  Ra2+ {[%clk 0:00:11]} 66. Kf3 {[%clk 0:00:04]}  Ra3+ {[%clk 0:00:09]} 67. Kf4 {[%clk 0:00:04]}  Ra2 {[%clk 0:00:09]} 68. f3 {[%clk 0:00:05]}  Kc3 {[%clk 0:00:07]} 69. Rxf5 {[%clk 0:00:05]}  d4 {[%clk 0:00:08]} 70. Rd5 {[%clk 0:00:05]}  d3 {[%clk 0:00:08]} 71. Kf5 {[%clk 0:00:06]}  Re2 {[%clk 0:00:08]} 72. f4 {[%clk 0:00:06]}  d2 {[%clk 0:00:09]} 73. Kg6 {[%clk 0:00:05]}  Re3 {[%clk 0:00:09]} 74. Rxd2 {[%clk 0:00:04]}  Kxd2 {[%clk 0:00:09]} 75. f5 {[%clk 0:00:05]}  Rg3+ {[%clk 0:00:09]} 76. Kf7 {[%clk 0:00:01]}  Kd3 {[%clk 0:00:08]} 77. f6 {[%clk 0:00:02]}  Ke4 {[%clk 0:00:08]} 78. Ke6 {[%clk 0:00:02]}  Rg6 {[%clk 0:00:07]} 79. Ke7 {[%clk 0:00:02]}  Kf5 {[%clk 0:00:07]} 80. f7 {[%clk 0:00:03]}  Rg7 {[%clk 0:00:07]} 81. Ke8 {[%clk 0:00:03]}  Rxf7 {[%clk 0:00:07]} 82. Kxf7 {[%clk 0:00:03]} 1/2-1/2


[Site "https://www.chess.com"]

[Event "Titled Tuesday Blitz July 25 Early 2023"]
[White "Jahnz, Fabian"]
[Black "rikchessmx"]
[WhiteFideId "4653300"]
[WhiteElo "2120"]
[BlackElo "2260"]
[Result "0-1"]
[Round "9"]
[TimeControl "180+2"]
[Date "2023.07.25"]
[WhiteClock "0:00:04"]
[BlackClock "0:01:23"]
[Board "167"]

1. e4 {[%clk 0:03:00]}  c5 {[%clk 0:02:59]} 2. Nf3 {[%clk 0:02:58]}  e6 {[%clk 0:03:00]} 3. d4 {[%clk 0:02:58]}  cxd4 {[%clk 0:03:01]} 4. Nxd4 {[%clk 0:02:58]}  a6 {[%clk 0:03:01]} 5. c4 {[%clk 0:02:57]}  Qc7 {[%clk 0:03:02]} 6. Nc3 {[%clk 0:02:57]}  Nf6 {[%clk 0:03:02]} 7. Be3 {[%clk 0:02:57]}  Bb4 {[%clk 0:03:01]} 8. Bd3 {[%clk 0:02:57]}  Nc6 {[%clk 0:03:01]} 9. Nxc6 {[%clk 0:02:57]}  dxc6 {[%clk 0:03:00]} 10. O-O {[%clk 0:02:57]}  h5 {[%clk 0:03:00]} 11. f3 {[%clk 0:02:55]}  Bd6 {[%clk 0:02:58]} 12. f4 {[%clk 0:02:48]}  Ng4 {[%clk 0:02:57]} 13. Qf3 {[%clk 0:02:37]}  Qa5 {[%clk 0:02:50]} 14. Kh1 {[%clk 0:02:33]}  Bc5 {[%clk 0:02:48]} 15. Bxc5 {[%clk 0:02:32]}  Qxc5 {[%clk 0:02:48]} 16. f5 {[%clk 0:02:26]}  e5 {[%clk 0:02:48]} 17. Rac1 {[%clk 0:02:17]}  Bd7 {[%clk 0:02:46]} 18. a3 {[%clk 0:02:16]}  a5 {[%clk 0:02:44]} 19. Na4 {[%clk 0:02:05]}  Qd4 {[%clk 0:02:39]} 20. h3 {[%clk 0:01:46]}  b5 {[%clk 0:02:34]} 21. cxb5 {[%clk 0:01:22]}  Qxa4 {[%clk 0:02:32]} 22. bxc6 {[%clk 0:01:12]}  Bxc6 {[%clk 0:02:32]} 23. Rc4 {[%clk 0:01:09]}  Qb5 {[%clk 0:02:29]} 24. Rfc1 {[%clk 0:01:03]}  Qa6 {[%clk 0:01:56]} 25. Rxc6 {[%clk 0:00:48]}  Qxd3 {[%clk 0:01:55]} 26. Rc8+ {[%clk 0:00:29]}  Ke7 {[%clk 0:01:51]} 27. Rxa8 {[%clk 0:00:25]}  Qxf3 {[%clk 0:01:41]} 28. gxf3 {[%clk 0:00:25]}  Rxa8 {[%clk 0:01:39]} 29. fxg4 {[%clk 0:00:22]}  hxg4 {[%clk 0:01:39]} 30. hxg4 {[%clk 0:00:23]}  Ra7 {[%clk 0:01:39]} 31. Rc5 {[%clk 0:00:22]}  Kf6 {[%clk 0:01:38]} 32. Kg2 {[%clk 0:00:22]}  Kg5 {[%clk 0:01:38]} 33. Kf3 {[%clk 0:00:21]}  f6 {[%clk 0:01:39]} 34. Rd5 {[%clk 0:00:19]}  Rb7 {[%clk 0:01:38]} 35. Rxa5 {[%clk 0:00:17]}  Rb3+ {[%clk 0:01:37]} 36. Kf2 {[%clk 0:00:16]}  Rxb2+ {[%clk 0:01:38]} 37. Kf3 {[%clk 0:00:17]}  Rb3+ {[%clk 0:01:38]} 38. Kf2 {[%clk 0:00:17]}  Kxg4 {[%clk 0:01:38]} 39. Ra7 {[%clk 0:00:18]}  Kf4 {[%clk 0:01:38]} 40. a4 {[%clk 0:00:15]}  Ra3 {[%clk 0:01:35]} 41. a5 {[%clk 0:00:14]}  Kxe4 {[%clk 0:01:34]} 42. a6 {[%clk 0:00:11]}  Kxf5 {[%clk 0:01:34]} 43. Ra8 {[%clk 0:00:11]}  g5 {[%clk 0:01:33]} 44. Ke2 {[%clk 0:00:09]}  Kf4 {[%clk 0:01:31]} 45. a7 {[%clk 0:00:08]}  f5 {[%clk 0:01:30]} 46. Ke1 {[%clk 0:00:08]}  e4 {[%clk 0:01:30]} 47. Kf1 {[%clk 0:00:08]}  Kf3 {[%clk 0:01:29]} 48. Kg1 {[%clk 0:00:08]}  f4 {[%clk 0:01:28]} 49. Rg8 {[%clk 0:00:07]}  Rxa7 {[%clk 0:01:26]} 50. Rxg5 {[%clk 0:00:08]}  e3 {[%clk 0:01:26]} 51. Rd5 {[%clk 0:00:07]}  Ra3 {[%clk 0:01:24]} 52. Rd6 {[%clk 0:00:04]}  e2 {[%clk 0:01:23]} 0-1


[Site "https://www.chess.com"]